[Event "*** SCC Grand Prix: Titled Tuesday Blitz"]
[Site "Chess.com"]
[Date "2020.08.11"]
[Round "1"]
[White "vladislavkovalev"]
[Black "chigorin28"]
[Result "1-0"]
[WhiteElo "2882"]
[BlackElo "2424"]
[TimeControl "180+1"]
[EndTime "10:07:35 PDT"]
[Termination "vladislavkovalev won on time"]

1. e4 {[%clk 0:02:55.6]} 1... e6 {[%clk 0:02:50.1]} 2. d3 {[%clk 0:02:55.6]}
2... d5 {[%clk 0:02:50.1]} 3. Nd2 {[%clk 0:02:56.5]} 3... c5 {[%clk 0:02:44.7]}
4. g3 {[%clk 0:02:56.2]} 4... Nc6 {[%clk 0:02:44.8]} 5. Bg2 {[%clk 0:02:56.7]}
5... Nf6 {[%clk 0:02:44.9]} 6. Ngf3 {[%clk 0:02:55.1]} 6... Be7 {[%clk
0:02:41.1]} 7. O-O {[%clk 0:02:54.9]} 7... O-O {[%clk 0:02:41.2]} 8. Re1 {[%clk
0:02:54.7]} 8... b5 {[%clk 0:02:37.8]} 9. e5 {[%clk 0:02:52.7]} 9... Nd7 {[%clk
0:02:37]} 10. Nf1 {[%clk 0:02:53.3]} 10... Bb7 {[%clk 0:02:34.7]} 11. h4 {[%clk
0:02:53.3]} 11... Re8 {[%clk 0:02:31.8]} 12. N1h2 {[%clk 0:02:53.5]} 12... Nf8
{[%clk 0:02:31.1]} 13. h5 {[%clk 0:02:53.2]} 13... h6 {[%clk 0:02:31.3]} 14. Ng4
{[%clk 0:02:53.3]} 14... Nh7 {[%clk 0:02:31.7]} 15. Bf4 {[%clk 0:02:50.4]} 15...
Ng5 {[%clk 0:02:31.6]} 16. Qd2 {[%clk 0:02:31.9]} 16... Nxf3+ {[%clk 0:02:30.4]}
17. Bxf3 {[%clk 0:02:32.8]} 17... Bg5 {[%clk 0:02:30.8]} 18. c3 {[%clk 0:02:26]}
18... Bxf4 {[%clk 0:02:30.6]} 19. Qxf4 {[%clk 0:02:26.4]} 19... Qg5 {[%clk
0:02:29.5]} 20. Qxg5 {[%clk 0:02:26.4]} 20... hxg5 {[%clk 0:02:29.7]} 21. h6
{[%clk 0:02:27.3]} 21... Red8 {[%clk 0:01:47.3]} 22. Kg2 {[%clk 0:02:26.8]}
22... gxh6 {[%clk 0:01:42]} 23. Rh1 {[%clk 0:02:24.6]} 23... Kg7 {[%clk
0:01:37.7]} 24. Rxh6 {[%clk 0:02:22.9]} 24... Rh8 {[%clk 0:01:37.3]} 25. Rxh8
{[%clk 0:02:23.2]} 25... Rxh8 {[%clk 0:01:37.4]} 26. Rc1 {[%clk 0:02:09.4]}
26... Ba8 {[%clk 0:00:55.1]} 27. Kf1 {[%clk 0:02:08.3]} 27... Kg6 {[%clk
0:00:48]} 28. Rd1 {[%clk 0:01:29.8]} 28... Kf5 {[%clk 0:00:20.4]} 29. d4 {[%clk
0:01:29.4]} 29... c4 {[%clk 0:00:20.4]} 30. Ke2 {[%clk 0:01:25.9]} 30... Bb7
{[%clk 0:00:18.3]} 31. a3 {[%clk 0:01:20.4]} 31... Kg6 {[%clk 0:00:16.3]} 32.
Ke3 {[%clk 0:01:20.6]} 32... Kg7 {[%clk 0:00:16.4]} 33. Ra1 {[%clk 0:01:19.6]}
33... Ne7 {[%clk 0:00:16.1]} 34. Ke2 {[%clk 0:01:18.6]} 34... Nf5 {[%clk
0:00:16.3]} 35. Nf6 {[%clk 0:01:17.8]} 35... Bc6 {[%clk 0:00:12.3]} 36. Bg4
{[%clk 0:01:10.7]} 36... Nh6 {[%clk 0:00:11.2]} 37. Bh3 {[%clk 0:00:58.2]} 37...
Ng8 {[%clk 0:00:10.6]} 38. Nxg8 {[%clk 0:00:56.6]} 38... Rxh3 {[%clk 0:00:08.9]}
39. Nf6 {[%clk 0:00:56.1]} 39... Rh8 {[%clk 0:00:08.5]} 40. Ng4 {[%clk
0:00:53.3]} 40... a6 {[%clk 0:00:08.4]} 41. Kf3 {[%clk 0:00:53.4]} 41... a5
{[%clk 0:00:07.6]} 42. Kg2 {[%clk 0:00:53.5]} 42... Kg6 {[%clk 0:00:07.4]} 43.
Rh1 {[%clk 0:00:44.7]} 43... Rb8 {[%clk 0:00:04.9]} 44. Nf6 {[%clk 0:00:36.6]}
44... b4 {[%clk 0:00:04.5]} 45. axb4 {[%clk 0:00:37.5]} 45... axb4 {[%clk
0:00:04.4]} 46. cxb4 {[%clk 0:00:36.8]} 46... Rxb4 {[%clk 0:00:04.7]} 47. Rh8
{[%clk 0:00:37.3]} 47... Rxb2 {[%clk 0:00:02.2]} 48. g4 {[%clk 0:00:35]} 48...
Kg7 {[%clk 0:00:02.1]} 49. Rg8+ {[%clk 0:00:34]} 49... Kh6 {[%clk 0:00:02]} 50.
Kg3 {[%clk 0:00:34.6]} 50... Bb5 {[%clk 0:00:01.7]} 51. f4 {[%clk 0:00:34.7]}
51... Rb3+ {[%clk 0:00:02]} 52. Kf2 {[%clk 0:00:34.5]} 52... Rb2+ {[%clk
0:00:02.3]} 53. Ke1 {[%clk 0:00:34.5]} 1-0

[Event "*** SCC Grand Prix: Titled Tuesday Blitz"]
[Site "Chess.com"]
[Date "2020.08.11"]
[Round "1"]
[White "Nikolaj_6"]
[Black "kobemagic"]
[Result "1-0"]
[WhiteElo "2628"]
[BlackElo "2277"]
[TimeControl "180+1"]
[EndTime "10:07:36 PDT"]
[Termination "Nikolaj_6 won by resignation"]

1. e4 {[%clk 0:02:50]} 1... Nf6 {[%clk 0:02:59.5]} 2. e5 {[%clk 0:02:49.9]} 2...
Nd5 {[%clk 0:02:59.6]} 3. d4 {[%clk 0:02:50.3]} 3... d6 {[%clk 0:03:00]} 4. c4
{[%clk 0:02:50.8]} 4... Nb6 {[%clk 0:02:59.8]} 5. exd6 {[%clk 0:02:51.3]} 5...
exd6 {[%clk 0:02:59.7]} 6. Nc3 {[%clk 0:02:51.7]} 6... Nc6 {[%clk 0:02:59.4]} 7.
d5 {[%clk 0:02:48.2]} 7... Ne5 {[%clk 0:02:58.8]} 8. b3 {[%clk 0:02:44.7]} 8...
Be7 {[%clk 0:02:50.6]} 9. f4 {[%clk 0:02:41.3]} 9... Bg4 {[%clk 0:02:47.8]} 10.
Be2 {[%clk 0:02:17.8]} 10... Bxe2 {[%clk 0:02:46.7]} 11. Ngxe2 {[%clk
0:02:17.5]} 11... Ng6 {[%clk 0:02:46.3]} 12. O-O {[%clk 0:02:15.5]} 12... O-O
{[%clk 0:02:46.1]} 13. Be3 {[%clk 0:02:12.6]} 13... Re8 {[%clk 0:02:44.5]} 14.
Qd2 {[%clk 0:02:11.2]} 14... Bf6 {[%clk 0:02:44.1]} 15. Bd4 {[%clk 0:02:10.6]}
15... Nd7 {[%clk 0:02:35.3]} 16. Ng3 {[%clk 0:02:05.3]} 16... Nc5 {[%clk
0:02:25.7]} 17. Rae1 {[%clk 0:02:00.9]} 17... Bxd4+ {[%clk 0:02:11.3]} 18. Qxd4
{[%clk 0:02:00.3]} 18... Qd7 {[%clk 0:02:11.7]} 19. Nh5 {[%clk 0:01:56.3]} 19...
f6 {[%clk 0:02:08.6]} 20. b4 {[%clk 0:01:52.4]} 20... Na6 {[%clk 0:02:04.4]} 21.
a3 {[%clk 0:01:43.4]} 21... Kf7 {[%clk 0:01:56.5]} 22. h3 {[%clk 0:01:37.5]}
22... Rxe1 {[%clk 0:01:50.9]} 23. Rxe1 {[%clk 0:01:37]} 23... Re8 {[%clk
0:01:51.5]} 24. Rxe8 {[%clk 0:01:17.3]} 24... Qxe8 {[%clk 0:01:52.4]} 25. Kf2
{[%clk 0:01:16.4]} 25... b6 {[%clk 0:01:51.6]} 26. Nb5 {[%clk 0:01:10.7]} 26...
Ne7 {[%clk 0:01:22.3]} 27. g4 {[%clk 0:01:01.9]} 27... Ng6 {[%clk 0:01:14.3]}
28. Qe3 {[%clk 0:00:56.7]} 28... Qd7 {[%clk 0:01:00.4]} 29. Nxa7 {[%clk
0:00:52.7]} 29... Nb8 {[%clk 0:01:00.4]} 30. b5 {[%clk 0:00:47]} 30... c5 {[%clk
0:00:46.1]} 31. Nc6 {[%clk 0:00:37.7]} 31... Nxc6 {[%clk 0:00:37.3]} 32. bxc6
{[%clk 0:00:37.6]} 32... Qc8 {[%clk 0:00:34.8]} 33. a4 {[%clk 0:00:34.7]} 33...
Nf8 {[%clk 0:00:34.5]} 34. f5 {[%clk 0:00:34]} 34... Qa6 {[%clk 0:00:34.3]} 35.
Qb3 {[%clk 0:00:28.9]} 35... Qa5 {[%clk 0:00:31.8]} 36. Nf4 {[%clk 0:00:25.6]}
36... g5 {[%clk 0:00:28]} 37. Ne6 {[%clk 0:00:24.6]} 37... Nxe6 {[%clk
0:00:28.1]} 38. fxe6+ {[%clk 0:00:23.9]} 38... Ke7 {[%clk 0:00:27.2]} 39. Qc2
{[%clk 0:00:24.1]} 39... Kd8 {[%clk 0:00:24.4]} 40. e7+ {[%clk 0:00:22.6]} 40...
Kxe7 {[%clk 0:00:22.8]} 41. Qxh7+ {[%clk 0:00:22.7]} 41... Kf8 {[%clk
0:00:23.5]} 42. Qe4 {[%clk 0:00:20.2]} 42... Qd2+ {[%clk 0:00:22.3]} 43. Qe2
{[%clk 0:00:20.4]} 43... Qd4+ {[%clk 0:00:22.1]} 44. Kg2 {[%clk 0:00:20.4]}
44... Qe5 {[%clk 0:00:06.2]} 45. Qxe5 {[%clk 0:00:19.6]} 45... fxe5 {[%clk
0:00:05]} 46. c7 {[%clk 0:00:19.9]} 1-0

[Event "*** SCC Grand Prix: Titled Tuesday Blitz"]
[Site "Chess.com"]
[Date "2020.08.11"]
[Round "1"]
[White "Infernal_XaM"]
[Black "Zhani-Z"]
[Result "1-0"]
[WhiteElo "2914"]
[BlackElo "2434"]
[TimeControl "180+1"]
[EndTime "10:07:37 PDT"]
[Termination "Infernal_XaM won on time"]

1. d4 {[%clk 0:02:48.4]} 1... Nf6 {[%clk 0:02:58.1]} 2. c4 {[%clk 0:02:48.9]}
2... e6 {[%clk 0:02:57.8]} 3. Nf3 {[%clk 0:02:48.8]} 3... d5 {[%clk 0:02:58.1]}
4. Nc3 {[%clk 0:02:48.3]} 4... c5 {[%clk 0:02:58.6]} 5. e3 {[%clk 0:02:44.2]}
5... Nc6 {[%clk 0:02:55.2]} 6. a3 {[%clk 0:02:42.3]} 6... a6 {[%clk 0:02:42.9]}
7. dxc5 {[%clk 0:02:39.1]} 7... Bxc5 {[%clk 0:02:38.6]} 8. b4 {[%clk 0:02:39.6]}
8... Ba7 {[%clk 0:02:35.8]} 9. Bb2 {[%clk 0:02:38.8]} 9... O-O {[%clk
0:02:34.4]} 10. cxd5 {[%clk 0:02:37.8]} 10... exd5 {[%clk 0:02:33.2]} 11. b5
{[%clk 0:02:38.1]} 11... axb5 {[%clk 0:02:29.8]} 12. Nxb5 {[%clk 0:02:36.4]}
12... Bb6 {[%clk 0:02:22.9]} 13. Bd3 {[%clk 0:02:30.3]} 13... Ba5+ {[%clk
0:01:55.9]} 14. Bc3 {[%clk 0:02:17.4]} 14... Bg4 {[%clk 0:01:49]} 15. O-O {[%clk
0:02:05.1]} 15... Bxc3 {[%clk 0:01:47.4]} 16. Nxc3 {[%clk 0:02:04.4]} 16... Qe7
{[%clk 0:01:26.3]} 17. Be2 {[%clk 0:01:59.4]} 17... Rfd8 {[%clk 0:01:18.8]} 18.
Nb5 {[%clk 0:01:55.4]} 18... Ne4 {[%clk 0:01:11.7]} 19. h3 {[%clk 0:01:37.8]}
19... Bh5 {[%clk 0:01:11.1]} 20. Nfd4 {[%clk 0:01:33.4]} 20... Bxe2 {[%clk
0:01:09.3]} 21. Qxe2 {[%clk 0:01:32.3]} 21... Nxd4 {[%clk 0:01:06.3]} 22. Nxd4
{[%clk 0:01:33.2]} 22... Rxa3 {[%clk 0:00:39.3]} 23. Nf5 {[%clk 0:01:31.4]}
23... Qf8 {[%clk 0:00:39.2]} 24. Rxa3 {[%clk 0:01:03.3]} 24... Qxa3 {[%clk
0:00:37.9]} 25. Qg4 {[%clk 0:01:03.2]} 25... g6 {[%clk 0:00:29.8]} 26. Qh4
{[%clk 0:01:03.4]} 26... Qf8 {[%clk 0:00:27.6]} 27. Nh6+ {[%clk 0:00:58.6]}
27... Kg7 {[%clk 0:00:27.4]} 28. Ng4 {[%clk 0:00:56.8]} 28... h5 {[%clk
0:00:27.1]} 29. Ne5 {[%clk 0:00:55.9]} 29... Re8 {[%clk 0:00:20.8]} 30. Nf3
{[%clk 0:00:50.4]} 30... Qe7 {[%clk 0:00:20.3]} 31. Qf4 {[%clk 0:00:50.7]} 31...
b5 {[%clk 0:00:17.1]} 32. Rb1 {[%clk 0:00:48.1]} 32... b4 {[%clk 0:00:14.7]} 33.
Nd4 {[%clk 0:00:46]} 33... Nc3 {[%clk 0:00:13]} 34. Rxb4 {[%clk 0:00:42.5]}
34... Ra8 {[%clk 0:00:06.5]} 35. Rb3 {[%clk 0:00:36.3]} 35... Ne4 {[%clk
0:00:06.5]} 36. Rb1 {[%clk 0:00:26.4]} 36... Ra2 {[%clk 0:00:06.2]} 37. f3
{[%clk 0:00:24.8]} 37... Nf6 {[%clk 0:00:06.3]} 38. Rc1 {[%clk 0:00:22.7]} 38...
Ra7 {[%clk 0:00:03.4]} 39. h4 {[%clk 0:00:22.3]} 39... Rb7 {[%clk 0:00:02.1]}
40. Qg5 {[%clk 0:00:20.8]} 40... Kh7 {[%clk 0:00:01.4]} 41. Rc6 {[%clk 0:00:20]}
41... Rc7 {[%clk 0:00:01.7]} 42. Rxf6 {[%clk 0:00:19.6]} 1-0

[Event "*** SCC Grand Prix: Titled Tuesday Blitz"]
[Site "Chess.com"]
[Date "2020.08.11"]
[Round "1"]
[White "NateSolon"]
[Black "politeplayer"]
[Result "1/2-1/2"]
[WhiteElo "2552"]
[BlackElo "2209"]
[TimeControl "180+1"]
[EndTime "10:07:39 PDT"]
[Termination "Game drawn by repetition"]

1. d4 {[%clk 0:03:00.9]} 1... d5 {[%clk 0:02:57.5]} 2. c4 {[%clk 0:03:00.4]}
2... c5 {[%clk 0:02:58]} 3. Nf3 {[%clk 0:02:55.4]} 3... cxd4 {[%clk 0:02:55.9]}
4. cxd5 {[%clk 0:02:54.9]} 4... Qxd5 {[%clk 0:02:42.9]} 5. Nc3 {[%clk
0:02:54.4]} 5... Qa5 {[%clk 0:02:41.8]} 6. Nxd4 {[%clk 0:02:52.2]} 6... Bd7
{[%clk 0:02:29.3]} 7. g3 {[%clk 0:02:45.9]} 7... Nc6 {[%clk 0:02:26.8]} 8. Bg2
{[%clk 0:02:44.2]} 8... Rd8 {[%clk 0:02:19.7]} 9. Nxc6 {[%clk 0:02:22.1]} 9...
Bxc6 {[%clk 0:02:16.9]} 10. Bxc6+ {[%clk 0:02:21.6]} 10... bxc6 {[%clk
0:02:16.4]} 11. Qc2 {[%clk 0:02:22.3]} 11... Nf6 {[%clk 0:02:06.4]} 12. O-O
{[%clk 0:02:21.9]} 12... e6 {[%clk 0:01:48.8]} 13. Na4 {[%clk 0:02:16.9]} 13...
c5 {[%clk 0:01:24.4]} 14. Be3 {[%clk 0:02:10]} 14... Nd5 {[%clk 0:01:10]} 15.
Bxc5 {[%clk 0:01:53]} 15... Bxc5 {[%clk 0:01:09.3]} 16. Nxc5 {[%clk 0:01:53.9]}
16... Rc8 {[%clk 0:01:09.3]} 17. Rfc1 {[%clk 0:01:39.8]} 17... O-O {[%clk
0:01:07.7]} 18. a3 {[%clk 0:01:37.3]} 18... Qc7 {[%clk 0:01:05]} 19. Qa4 {[%clk
0:00:59.2]} 19... Qd6 {[%clk 0:00:54.5]} 20. Nd3 {[%clk 0:00:57.8]} 20... h5
{[%clk 0:00:49.4]} 21. Qd4 {[%clk 0:00:56.4]} 21... Qb6 {[%clk 0:00:38.6]} 22.
Qxb6 {[%clk 0:00:53.6]} 22... Nxb6 {[%clk 0:00:36.4]} 23. Kf1 {[%clk 0:00:47.9]}
23... f6 {[%clk 0:00:36.3]} 24. h4 {[%clk 0:00:34.6]} 24... Kf7 {[%clk
0:00:35.7]} 25. e4 {[%clk 0:00:32.9]} 25... Nc4 {[%clk 0:00:28]} 26. Ke2 {[%clk
0:00:22.1]} 26... Rfd8 {[%clk 0:00:23.6]} 27. Rc3 {[%clk 0:00:20.8]} 27... Nxb2
{[%clk 0:00:19.8]} 28. Rxc8 {[%clk 0:00:18.6]} 28... Rxc8 {[%clk 0:00:20]} 29.
Nxb2 {[%clk 0:00:16.7]} 29... Rc2+ {[%clk 0:00:20.2]} 30. Kf1 {[%clk 0:00:16]}
30... Rxb2 {[%clk 0:00:19.8]} 31. Rc1 {[%clk 0:00:16.6]} 31... Rb7 {[%clk
0:00:18.6]} 32. Rc6 {[%clk 0:00:16]} 32... f5 {[%clk 0:00:18.2]} 33. exf5 {[%clk
0:00:15.3]} 33... exf5 {[%clk 0:00:18.3]} 34. Kg2 {[%clk 0:00:16.2]} 34... g6
{[%clk 0:00:18.2]} 35. Kf3 {[%clk 0:00:16.5]} 35... Re7 {[%clk 0:00:17.9]} 36.
a4 {[%clk 0:00:15.8]} 36... Re4 {[%clk 0:00:16]} 37. a5 {[%clk 0:00:15.7]} 37...
Ra4 {[%clk 0:00:13.4]} 38. Rc7+ {[%clk 0:00:14.5]} 38... Kf6 {[%clk 0:00:13.4]}
39. Rxa7 {[%clk 0:00:15.4]} 39... Ra3+ {[%clk 0:00:13.6]} 40. Kg2 {[%clk
0:00:14.8]} 40... f4 {[%clk 0:00:13.7]} 41. gxf4 {[%clk 0:00:13.9]} 41... Kf5
{[%clk 0:00:14]} 42. a6 {[%clk 0:00:10.8]} 42... Ke4 {[%clk 0:00:13]} 43. Re7+
{[%clk 0:00:09.1]} 43... Kxf4 {[%clk 0:00:13.2]} 44. a7 {[%clk 0:00:09.3]} 44...
Kg4 {[%clk 0:00:12.9]} 45. Re4+ {[%clk 0:00:06.8]} 45... Kf5 {[%clk 0:00:12.7]}
46. Re7 {[%clk 0:00:07.6]} 46... Kg4 {[%clk 0:00:12.7]} 47. Re4+ {[%clk
0:00:07.8]} 47... Kf5 {[%clk 0:00:12.8]} 48. Re7 {[%clk 0:00:08.4]} 48... Kg4
{[%clk 0:00:13.1]} 1/2-1/2

[Event "*** SCC Grand Prix: Titled Tuesday Blitz"]
[Site "Chess.com"]
[Date "2020.08.11"]
[Round "1"]
[White "maxip32"]
[Black "Spriteball"]
[Result "0-1"]
[WhiteElo "2476"]
[BlackElo "2078"]
[TimeControl "180+1"]
[EndTime "10:07:39 PDT"]
[Termination "Spriteball won on time"]

1. e4 {[%clk 0:02:57]} 1... e5 {[%clk 0:02:58.3]} 2. Nf3 {[%clk 0:02:56.7]} 2...
Nc6 {[%clk 0:02:57.8]} 3. Bc4 {[%clk 0:02:55.7]} 3... Nf6 {[%clk 0:02:57.3]} 4.
d3 {[%clk 0:02:55.5]} 4... Be7 {[%clk 0:02:56.4]} 5. O-O {[%clk 0:02:55]} 5...
O-O {[%clk 0:02:55.7]} 6. Re1 {[%clk 0:02:55]} 6... d6 {[%clk 0:02:55.3]} 7. c3
{[%clk 0:02:52.1]} 7... Na5 {[%clk 0:02:55.2]} 8. Bb5 {[%clk 0:02:51.8]} 8... a6
{[%clk 0:02:55.7]} 9. Ba4 {[%clk 0:02:52.5]} 9... b5 {[%clk 0:02:56.3]} 10. Bc2
{[%clk 0:02:53.2]} 10... c5 {[%clk 0:02:56.5]} 11. Nbd2 {[%clk 0:02:51.7]} 11...
Nc6 {[%clk 0:02:55.3]} 12. a4 {[%clk 0:02:49.7]} 12... b4 {[%clk 0:02:53.6]} 13.
Nc4 {[%clk 0:02:48.2]} 13... Be6 {[%clk 0:02:49.2]} 14. Ne3 {[%clk 0:02:33.8]}
14... Qc7 {[%clk 0:02:38.9]} 15. Ng5 {[%clk 0:02:30.9]} 15... d5 {[%clk
0:02:32.6]} 16. Nxe6 {[%clk 0:02:22]} 16... fxe6 {[%clk 0:02:32.7]} 17. Ng4
{[%clk 0:02:13]} 17... Rad8 {[%clk 0:02:12.5]} 18. Nxf6+ {[%clk 0:01:57.5]}
18... Bxf6 {[%clk 0:02:11.8]} 19. Qg4 {[%clk 0:01:56.2]} 19... Qf7 {[%clk
0:02:07.6]} 20. Re2 {[%clk 0:01:47.5]} 20... c4 {[%clk 0:02:01.9]} 21. dxc4
{[%clk 0:01:38.5]} 21... d4 {[%clk 0:01:37.4]} 22. Qg3 {[%clk 0:01:11.4]} 22...
Bh4 {[%clk 0:01:16.7]} 23. Qxh4 {[%clk 0:01:07.7]} 23... d3 {[%clk 0:01:16.8]}
24. Bxd3 {[%clk 0:01:04]} 24... Rxd3 {[%clk 0:01:17.7]} 25. Bd2 {[%clk
0:00:46.8]} 25... Na5 {[%clk 0:01:06.1]} 26. cxb4 {[%clk 0:00:43.6]} 26... Nb3
{[%clk 0:01:04.1]} 27. Rd1 {[%clk 0:00:17.6]} 27... Rfd8 {[%clk 0:01:03.1]} 28.
Qg5 {[%clk 0:00:17.3]} 28... h6 {[%clk 0:01:02.5]} 29. Qxe5 {[%clk 0:00:16.8]}
29... Nxd2 {[%clk 0:01:01.3]} 30. Rde1 {[%clk 0:00:14.2]} 30... Nxc4 {[%clk
0:01:00.4]} 31. Qc5 {[%clk 0:00:14.2]} 31... e5 {[%clk 0:00:53.8]} 32. h3 {[%clk
0:00:14.5]} 32... R3d4 {[%clk 0:00:50.3]} 33. b5 {[%clk 0:00:13.7]} 33... axb5
{[%clk 0:00:49.9]} 34. axb5 {[%clk 0:00:14.4]} 34... Qd7 {[%clk 0:00:46.4]} 35.
b3 {[%clk 0:00:14.3]} 35... Nd6 {[%clk 0:00:44.4]} 36. b6 {[%clk 0:00:13.6]}
36... Qe6 {[%clk 0:00:40.1]} 37. Qc7 {[%clk 0:00:10.8]} 37... Rc8 {[%clk
0:00:37.5]} 38. Qa7 {[%clk 0:00:10.7]} 38... Rb4 {[%clk 0:00:36.3]} 39. Rd2
{[%clk 0:00:05.3]} 39... Nxe4 {[%clk 0:00:35.6]} 40. Rxe4 {[%clk 0:00:04]} 40...
Rxe4 {[%clk 0:00:34.5]} 41. b7 {[%clk 0:00:04.4]} 41... Re1+ {[%clk 0:00:25.2]}
42. Kh2 {[%clk 0:00:04.7]} 42... Rf8 {[%clk 0:00:19.9]} 43. b8=Q {[%clk
0:00:04.4]} 43... Rxb8 {[%clk 0:00:20.4]} 44. Qxb8+ {[%clk 0:00:05.3]} 44... Kh7
{[%clk 0:00:20.6]} 45. Qb4 {[%clk 0:00:04.6]} 45... Qf5 {[%clk 0:00:20.1]} 46.
Qc5 {[%clk 0:00:01.8]} 46... Qf4+ {[%clk 0:00:19.9]} 47. g3 {[%clk 0:00:02.1]}
47... Qf3 {[%clk 0:00:18.6]} 48. Qc2+ {[%clk 0:00:02.2]} 48... e4 {[%clk
0:00:17]} 0-1

[Event "*** SCC Grand Prix: Titled Tuesday Blitz"]
[Site "Chess.com"]
[Date "2020.08.11"]
[Round "1"]
[White "Sharpchess22"]
[Black "zajka-molotok"]
[Result "1-0"]
[WhiteElo "2804"]
[BlackElo "2401"]
[TimeControl "180+1"]
[EndTime "10:07:40 PDT"]
[Termination "Sharpchess22 won by resignation"]

1. d4 {[%clk 0:03:00.9]} 1... d5 {[%clk 0:02:59.2]} 2. c4 {[%clk 0:03:00.7]}
2... c6 {[%clk 0:02:59.5]} 3. Nf3 {[%clk 0:02:59.9]} 3... Nf6 {[%clk 0:02:59.2]}
4. Qb3 {[%clk 0:02:59.4]} 4... dxc4 {[%clk 0:02:52.6]} 5. Qxc4 {[%clk
0:02:59.1]} 5... Bf5 {[%clk 0:02:52.3]} 6. g3 {[%clk 0:02:58]} 6... e6 {[%clk
0:02:52.2]} 7. Bg2 {[%clk 0:02:57.5]} 7... Be7 {[%clk 0:02:50.1]} 8. O-O {[%clk
0:02:57.4]} 8... O-O {[%clk 0:02:50.1]} 9. e3 {[%clk 0:02:56]} 9... Nbd7 {[%clk
0:02:48.4]} 10. Qe2 {[%clk 0:02:54.6]} 10... Ne4 {[%clk 0:02:29.6]} 11. Ne1
{[%clk 0:02:43.7]} 11... Nd6 {[%clk 0:02:17.7]} 12. Nd3 {[%clk 0:02:39.4]} 12...
Bg6 {[%clk 0:02:06.3]} 13. Rd1 {[%clk 0:02:37.1]} 13... Qa5 {[%clk 0:02:04]} 14.
Nc3 {[%clk 0:02:34.5]} 14... Rad8 {[%clk 0:01:57.3]} 15. e4 {[%clk 0:02:31.2]}
15... Rfe8 {[%clk 0:01:52.6]} 16. Bf4 {[%clk 0:02:27.3]} 16... Qa6 {[%clk
0:01:47.7]} 17. Rac1 {[%clk 0:02:18.6]} 17... Nc4 {[%clk 0:01:35.2]} 18. h4
{[%clk 0:02:15.7]} 18... h6 {[%clk 0:01:34]} 19. b3 {[%clk 0:02:02]} 19... Nd6
{[%clk 0:01:29.5]} 20. Be3 {[%clk 0:02:00.6]} 20... Nb5 {[%clk 0:01:24.1]} 21.
Na4 {[%clk 0:01:56.2]} 21... Nd6 {[%clk 0:01:13.8]} 22. Bf4 {[%clk 0:01:52.9]}
22... Nb5 {[%clk 0:01:03.2]} 23. Qe3 {[%clk 0:01:52.6]} 23... Ba3 {[%clk
0:01:00.2]} 24. Rc2 {[%clk 0:01:51.8]} 24... Bd6 {[%clk 0:00:54.4]} 25. e5
{[%clk 0:01:48.6]} 25... Bf8 {[%clk 0:00:53]} 26. Be4 {[%clk 0:01:43.2]} 26...
Bxe4 {[%clk 0:00:51]} 27. Qxe4 {[%clk 0:01:44.1]} 27... Be7 {[%clk 0:00:41.5]}
28. Be3 {[%clk 0:01:41.6]} 28... Nf8 {[%clk 0:00:40.2]} 29. Qg4 {[%clk
0:01:40.4]} 29... Kh8 {[%clk 0:00:38.4]} 30. Qf3 {[%clk 0:01:37.2]} 30... Qa5
{[%clk 0:00:35.7]} 31. Qxf7 {[%clk 0:01:34.8]} 31... Ba3 {[%clk 0:00:28.8]} 32.
Nf4 {[%clk 0:01:29.6]} 32... Re7 {[%clk 0:00:23.5]} 33. Ng6+ {[%clk 0:01:18.6]}
33... Nxg6 {[%clk 0:00:20.5]} 34. Qxg6 {[%clk 0:01:19.5]} 34... Rf8 {[%clk
0:00:19.8]} 35. Kh2 {[%clk 0:01:13.5]} 35... Qd8 {[%clk 0:00:18.9]} 36. Nc5
{[%clk 0:01:05]} 36... Qe8 {[%clk 0:00:17.5]} 37. Qe4 {[%clk 0:00:57.8]} 37...
a6 {[%clk 0:00:15]} 38. Nd3 {[%clk 0:00:55.7]} 38... Ref7 {[%clk 0:00:14.3]} 39.
Nf4 {[%clk 0:00:54.7]} 39... Rf5 {[%clk 0:00:13.2]} 40. g4 {[%clk 0:00:51.8]}
40... Rxf4 {[%clk 0:00:13.1]} 41. Bxf4 {[%clk 0:00:51.7]} 41... Nc7 {[%clk
0:00:13.3]} 42. Bg3 {[%clk 0:00:50.8]} 42... Nd5 {[%clk 0:00:13.3]} 43. h5
{[%clk 0:00:51.2]} 43... Be7 {[%clk 0:00:12.7]} 44. f4 {[%clk 0:00:49.4]} 44...
Qf7 {[%clk 0:00:12.3]} 45. Rf2 {[%clk 0:00:47.1]} 45... Bb4 {[%clk 0:00:11.4]}
46. Rd3 {[%clk 0:00:46.4]} 46... Qe7 {[%clk 0:00:10.7]} 47. f5 {[%clk
0:00:45.9]} 47... Nc3 {[%clk 0:00:10.5]} 48. Qf3 {[%clk 0:00:42.9]} 48... Nd5
{[%clk 0:00:10.2]} 49. Qe2 {[%clk 0:00:41.8]} 49... Qe8 {[%clk 0:00:09.3]} 50.
f6 {[%clk 0:00:40.3]} 50... gxf6 {[%clk 0:00:05.2]} 51. exf6 {[%clk 0:00:40.4]}
51... Rf7 {[%clk 0:00:05.2]} 52. Qe4 {[%clk 0:00:36.2]} 52... Bf8 {[%clk
0:00:04.8]} 53. Be5 {[%clk 0:00:36]} 53... Qd7 {[%clk 0:00:04.2]} 54. Qg6 {[%clk
0:00:34.9]} 1-0